[Event "Teplice Open 2022"]
[Site "Teplice"]
[Date "2022.06.23"]
[Round "6.6"]
[White "Santiago, Yago De Moura"]
[Black "Kollars, Dmitrij"]
[Result "0-1"]
[ECO "E01"]
[WhiteElo "2498"]
[BlackElo "2635"]
[Annotator "TA"]
[PlyCount "160"]
[EventDate "2022.06.18"]
[EventType "swiss"]
[EventCountry "CZE"]
[SourceTitle "playchess.com"]
[Source "ChessBase"]
[SourceQuality "1"]
[TimeControl "40/5400+30:1800+30"]

{[%evp 17,160,0,0,-7,-4,-10,0,-2,-4,-6,0,-9,16,-8,-8,-10,0,-16,-15,-11,0,0,-5,0,0,0,0,0,0,0,0,0,-2,-19,-13,-32,-26,-22,-14,-6,-27,-79,0,0,0,0,0,0,0,0,0,0,0,0,0,0,0,0,0,0,0,0,0,0,0,0,0,-7,0,0,0,0,0,0,0,-8,-8,-8,-8,-8,-8,-36,-36,-36,0,-36,-36,-36,-36,-36,-36,-36,-36,-36,-29,-158,-51,-51,-51,-51,-51,-51,-8,-11,-7,-51,-51,-58,-62,-313,-244,-214,-52,-52,-52,-52,-58,-59,-8,-175,-180,-475,-475,-453,-481,-1196,-481,-3511,-2521,-1551,-1152,-1129,-460,-4964,-5745,-5752,-2795,-5197,-4761,-1453,-1218,-29964,-29971,-29971,-29970]} 1. d4 {[%emt 0:00:09]} Nf6 {[%emt 0:10:21]} 2. c4 {[%emt 0:00:27]} e6 {[%emt 0:00:04]} 3. Nf3 {[%emt 0:00:27]} d5 {[%emt 0:00:11]} 4. Nc3 {[%emt 0:00:22]} c6 {[%emt 0:00:24]} 5. g3 {[%emt 0:00:22]} dxc4 {[%emt 0:01:00]} 6. Bg2 {[%emt 0:00:13]} Nbd7 {[%emt 0:00:26]} 7. a4 {[%emt 0:02:14]} a5 {[%emt 0:00:41]} 8. O-O {[%emt 0:00:17]} Bb4 {[%emt 0:01:08]} 9. Qc2 {[%emt 0:00:16]} O-O {[%emt 0:00:53]} 10. Na2 {[%emt 0:00:13] E01: Catalan: Early deviations.} Bd6 {[%emt 0:02:00]} 11. Qxc4 {[%emt 0:00:15]} e5 {[%emt 0:00:42]} 12. Qc2 {[%emt 0:00:20] The position is equal.} Re8 {[%emt 0:09:27]} 13. Rd1 {[%emt 0:06:24]} Qe7 {[%emt 0:02:55]} 14. Nc3 {[%emt 0:00:40]} Bb4 {[%emt 0:08:59] [#]} 15. dxe5 $146 {[%emt 0:11:24]} ({Predecessor:} 15. e4 h6 16. h3 exd4 17. Nxd4 Nc5 18. f3 Qc7 19. Bf4 Qb6 20. Be3 Qc7 21. Bf2 {1-0 (48) Gleizerov,E (2545)-Chepukaitis,G (2300) St Petersburg 1995}) 15... Nxe5 {[%emt 0:00:20]} 16. Nd4 {[%emt 0:00:34]} Bd7 {[%emt 0:04:11]} 17. h3 {[%emt 0:24:54]} Rad8 {[%emt 0:02:17]} 18. b3 {[%emt 0:20:09]} Qc5 {[%emt 0:07:25]} 19. Bb2 {[%emt 0:00:13]} Bxh3 {[%emt 0:06:00]} 20. Bxh3 {[%emt 0:00:27]} Rxd4 {[%emt 0:00:03]} 21. Rxd4 {[%emt 0:00:14]} Qxd4 {[%emt 0:00:04]} 22. Na2 {[%emt 0:00:18]} Qb6 {[%emt 0:09:45] White must now prevent ...Neg4.} 23. Nxb4 {[%emt 0:00:35]} Qxb4 {[%emt 0:00:13]} 24. Rd1 {[%emt 0:09:16]} h5 {[%emt 0:04:27]} 25. Bg2 {[%emt 0:01:48]} h4 {[%emt 0:07:41]} 26. Bc3 {[%emt 0:06:59] A strong pair of Bishops.} Qe7 {[%emt 0:01:08]} 27. gxh4 {[%emt 0:00:44]} Nfg4 {[%emt 0:00:18][%cal Og4f2]} 28. Qf5 {[%emt 0:06:04]} Qxh4 {[%emt 0:00:40]} 29. Bxa5 {[%emt 0:01:09]} (29. Rd4 $11 {remains equal.}) 29... Ng6 {[%emt 0:04:47]} (29... Qh2+ $1 $17 30. Kf1 g6) 30. Bc7 $11 {[%emt 0:01:37]} Nf6 {[%emt 0:03:34]} (30... Rxe2 $2 31. Bg3 Qf6 32. Qc8+ Nf8 33. Qxg4 $18) 31. Rd8 {[%emt 0:01:40]} Rxd8 {[%emt 0:01:21]} 32. Bxd8 {[%emt 0:00:02]} Qb4 {[%emt 0:00:19]} 33. Bxf6 {[%emt 0:01:51]} gxf6 {[%emt 0:00:12]} 34. Qxf6 {[%emt 0:03:55]} Qxb3 {[%emt 0:00:03][%mdl 4096] Endgame KQB-KQN} 35. Qd8+ {[%emt 0:00:27]} Kh7 {[%emt 0:00:32]} 36. Qf6 {[%emt 0:00:48]} Qd1+ {[%emt 0:01:20]} 37. Bf1 {[%emt 0:00:21]} Kg8 {[%emt 0:00:05]} 38. a5 {[%emt 0:00:34]} Qd5 {[%emt 0:00:03]} 39. Qc3 {[%emt 0:00:45]} Qg5+ {[%emt 0:01:33]} 40. Kh1 {[%emt 0:00:31]} Nf4 {[%emt 0:01:44]} 41. Qe3 {[%emt 0:08:57]} Kf8 {[%emt 0:02:08]} 42. Qb6 {[%emt 0:01:36]} Qe7 {[%emt 0:02:58]} 43. a6 {[%emt 0:02:24]} Qh4+ {[%emt 0:01:30]} 44. Kg1 {[%emt 0:00:09]} Qg5+ {[%emt 0:00:08]} 45. Kh2 {[%emt 0:06:35]} bxa6 {[%emt 0:00:12]} 46. Qxc6 {[%emt 0:00:45]} Qh5+ {[%emt 0:01:17]} 47. Kg3 {[%emt 0:03:01] Strongly threatening Qd6+.} Nxe2+ {[%emt 0:01:35]} 48. Bxe2 {[%emt 0:00:06]} Qxe2 {[%emt 0:00:05] KQ-KQ} 49. f4 {[%emt 0:04:44]} Qe3+ {[%emt 0:01:57]} 50. Kg2 $1 {[%emt 0:00:08]} Qe2+ {[%emt 0:01:31]} 51. Kg3 {[%emt 0:00:08]} Qd3+ {[%emt 0:00:05]} 52. Kf2 {[%emt 0:00:12]} Kg7 {[%emt 0:05:11]} 53. Qc5 {[%emt 0:02:36]} Qb5 {[%emt 0:03:25]} 54. Qc3+ {[%emt 0:00:08]} Kg6 {[%emt 0:01:15]} 55. Kg3 {[%emt 0:00:06]} a5 {[%emt 0:02:04]} 56. Kg4 {[%emt 0:03:02]} (56. Qc2+ $11 Qf5 57. Qc4) 56... Qf5+ {[%emt 0:00:52]} ({Black should try} 56... a4 $17 {Hoping for ...Qd5.} 57. Qd4 Qf5+ 58. Kg3 Qa5 59. Qd3+ Kg7) 57. Kg3 $15 {[%emt 0:00:07]} Qd5 {[%emt 0:01:15]} 58. Qc2+ {[%emt 0:01:02]} Kh6 {[%emt 0:00:27]} 59. Qh2+ {[%emt 0:00:42]} Kg7 {[%emt 0:01:42] And now ...a4 would win.} 60. Qb2+ {[%emt 0:00:07]} Kg8 {[%emt 0:00:36] Black wants to play ...Qd3+.} 61. Qc2 {[%emt 0:01:03] Inhibits Qd3+.} Qd7 {[%emt 0:02:02] Against Qc8+} 62. f5 {[%emt 0:00:56]} Qd4 {[%emt 0:01:42] Prevents Qc5.} 63. Qc6 $2 {[%emt 0:01:39][%mdl 8192]} (63. Qa2 $1 $15) 63... Kg7 {[%emt 0:00:38]} 64. Qe8 {[%emt 0:00:24]} Qf6 $2 {[%emt 0:06:34]} (64... Kh6 $1 $19 {aiming for ...a4.} 65. Kf3 (65. Qxf7 {is a self mate.} Qg7+ 66. Qxg7+ Kxg7 67. Kf4 a4 68. Ke5 a3 69. Ke6 a2 70. f6+ Kf8 71. Kd5 a1=Q 72. Kc4 Kf7 73. Kd3 Kxf6 74. Kd2 Ke5 75. Kd3 Qd4+ 76. Kc2 Kd5 77. Kc1 Qf2 78. Kd1 Kd4 79. Kc1 Kc3 80. Kd1 Qf1#) 65... Qd1+ 66. Kf4 Qc1+ 67. Kf3 Qf1+ 68. Kg4 Qg2+ 69. Kf4 Qg5+ 70. Ke4 Qg4+ 71. Ke5 Qg3+ 72. Kd5 Qd3+ 73. Ke5 Qg3+ 74. Kd5 Qd3+ 75. Ke5 Qe3+ 76. Kf6 Qg5+ 77. Ke5 Kg7) 65. Kg4 $1 {[%emt 0:00:53]} Qd6 {[%emt 0:00:05]} 66. Kf3 {[%emt 0:01:16]} Qd1+ {[%emt 0:01:44]} 67. Kf4 {[%emt 0:00:36]} Qa1 {[%emt 0:00:10]} ({Black should play} 67... Qd2+ $15 68. Kg4 Qd4+ 69. Kh5 Qd5) 68. Kg3 $2 {[%emt 0:00:14] [#]} (68. Qd8 $1 $11) 68... Qd4 $1 $19 {[%emt 0:00:18]} 69. Kh3 $2 {[%emt 0:00:26] [#]} (69. Kf3) 69... Qf4 $1 {[%emt 0:00:29]} 70. Qb5 {[%emt 0:00:33]} a4 {[%emt 0:00:58]} 71. Qa5 {[%emt 0:00:41]} (71. Qd3 $142 Kh6 72. Qc3 Qxf5+ 73. Kg3) 71... Kf6 {[%emt 0:01:20]} (71... Qf3+ $142 72. Kh2 a3) 72. Kg2 {[%emt 0:00:42]} (72. Qd8+ $142 Kxf5 73. Qd7+ Kg6 74. Qc6+ Kh7 75. Qc2+ f5 76. Qd3 Qg4+ 77. Kh2 Qh4+ 78. Kg1 Qe1+ 79. Kh2) 72... Qe4+ {[%emt 0:00:27]} 73. Kg1 {[%emt 0:00:16]} Kg5 {[%emt 0:00:55] ...Qe3+ is the strong threat.} 74. Qa7 {[%emt 0:00:13] Prevents Qe3+.} Qxf5 {[%emt 0:01:01]} (74... Qe1+ $142 75. Kg2 Qe4+ 76. Kg1 Qe1+ 77. Kg2 Qe4+ 78. Kg1) 75. Kh2 {[%emt 0:00:05]} (75. Qe3+ $142 Kg6 76. Qd4 Qg5+ 77. Kh2) 75... Qf4+ {[%emt 0:00:13]} 76. Kh3 {[%emt 0:00:19]} Qf3+ {[%emt 0:00:20]} 77. Kh2 {[%emt 0:00:05]} a3 {[%emt 0:00:32]} 78. Qc5+ {[%emt 0:01:17]} Kg6 {[%emt 0:00:38] ( -> ...Qh5+)} 79. Qd6+ {[%emt 0:00:05]} Kh7 {[%emt 0:00:17]} 80. Qc5 {[%emt 0:00:11]} Qe2+ {[%emt 0:00:35] Weighted Error Value: White=0.08 (flawless) /Black=0.07 (flawless)} 0-1

[Event "Teplice Open 2022"]
[Site "Teplice"]
[Date "2022.06.23"]
[Round "6.7"]
[White "Fridman, Daniel"]
[Black "Karthik Venkataraman"]
[Result "1/2-1/2"]
[ECO "E04"]
[WhiteElo "2605"]
[BlackElo "2480"]
[Annotator "TA"]
[PlyCount "68"]
[EventDate "2022.06.18"]
[EventType "swiss"]
[EventCountry "CZE"]
[SourceTitle "playchess.com"]
[Source "ChessBase"]
[SourceQuality "1"]
[TimeControl "40/5400+30:1800+30"]

{[%evp 12,68,0,1,0,-12,0,-38,0,0,0,0,0,0,0,0,0,0,6,0,50,9,13,12,51,42,50,21,22,21,18,19,33,20,18,17,18,18,18,18,18,18,18,18,15,14,22,17,19,8,8,8,8,8,8,8,8,8,14]} 1. d4 {[%emt 0:07:10]} Nf6 {[%emt 0:00:24]} 2. Nf3 {[%emt 0:00:16]} d5 {[%emt 0:00:12]} 3. c4 {[%emt 0:00:24]} e6 {[%emt 0:00:05]} 4. Nc3 {[%emt 0:00:04]} c6 {[%emt 0:01:07]} 5. g3 {[%emt 0:00:34]} dxc4 {[%emt 0:00:13]} 6. Bg2 {[%emt 0:00:05]} b5 {[%emt 0:00:04]} 7. Ne5 {[%emt 0:00:51]} a6 {[%emt 0:00:06] is now debated instead of 7...Nd5. E04: Open Catalan: 5 Nf3.} 8. a4 {[%emt 0:00:41] [#] Hoping for axb5.} Bb7 $1 {[%emt 0:01:37]} 9. O-O {[%emt 0:00:33]} Be7 {[%emt 0:00:04] Black is slightly better.} 10. axb5 {[%emt 0:02:30]} axb5 {[%emt 0:00:05]} 11. Rxa8 {[%emt 0:00:05]} Bxa8 {[%emt 0:00:05]} 12. Nxb5 {[%emt 0:01:21]} cxb5 {[%emt 0:00:04]} 13. Bxa8 {[%emt 0:00:07]} O-O {[%emt 0:00:04]} 14. Bg2 {[%emt 0:02:50]} Nd5 {[%emt 0:00:07]} 15. Bd2 {[%emt 0:01:10]} Bd6 {[%emt 0:14:32] [#]} ({Black should play} 15... Qc7 $11) 16. Nf3 $146 {[%emt 0:01:56]} (16. e4 {looks sharper.} Ne7 17. Qh5 Nd7 18. Ng4) ({Predecessor:} 16. Ng4 Nc6 17. Ne3 Nde7 18. d5 exd5 19. Nxd5 Nxd5 20. Bxd5 {½-½ (20) Korley,K (2402)-Wang,K (2378) New York 2021}) 16... Nc6 {[%emt 0:01:27]} 17. b3 {[%emt 0:06:37]} cxb3 {[%emt 0:05:25]} 18. Qxb3 {[%emt 0:00:26]} Qb6 $1 {[%emt 0:04:52]} 19. e4 {[%emt 0:02:24]} (19. Qd3 $5 {[%cal Rf1b1]}) 19... Nxd4 {[%emt 0:14:49]} 20. Nxd4 {[%emt 0:00:14]} Qxd4 {[%emt 0:00:05]} 21. Rd1 {[%emt 0:03:41]} Ne7 {[%emt 0:00:17]} (21... Nf6 {feels hotter.} 22. Bc3 Qc5 23. e5 Bxe5 24. Bb4 Qc4) 22. Bf4 {[%emt 0:03:52]} Qb4 {[%emt 0:00:07] The position is equal.} 23. Qxb4 {[%emt 0:00:06]} Bxb4 {[%emt 0:00:03]} 24. Rb1 {[%emt 0:00:07]} Bc5 {[%emt 0:00:31]} (24... Nc6 $2 25. e5 $18) 25. Rxb5 {[%emt 0:00:07]} Rc8 {[%emt 0:00:04]} 26. Bf1 {[%emt 0:01:55][%cal Ob5c5]} Ng6 {[%emt 0:04:43]} 27. Rb8 {[%emt 0:00:21]} Rxb8 {[%emt 0:00:22]} 28. Bxb8 $11 {[%emt 0:00:06][%mdl 4096] Endgame KBB-KBN} Kf8 {[%emt 0:00:47]} 29. h4 {[%emt 0:00:09][%cal Bh2h4,Bh4h5][%mdl 32]} Ke7 {[%emt 0:00:31]} 30. h5 {[%emt 0:01:53]} Nf8 {[%emt 0:00:05]} 31. Be5 {[%emt 0:00:06]} g6 {[%emt 0:01:14]} 32. Be2 {[%emt 0:05:19]} Nd7 {[%emt 0:01:01]} 33. Bc3 {[%emt 0:00:29]} e5 {[%emt 0:06:58]} 34. hxg6 {[%emt 0:00:20]} hxg6 {[%emt 0:00:05] Weighted Error Value: White=0.05 (flawless) /Black=0.08 (flawless)} 1/2-1/2

[Event "Teplice Open 2022"]
[Site "Teplice"]
[Date "2022.06.23"]
[Round "6.8"]
[White "Das, Arghyadip"]
[Black "Azarov, Sergei"]
[Result "1/2-1/2"]
[ECO "C92"]
[WhiteElo "2472"]
[BlackElo "2588"]
[Annotator "TA"]
[PlyCount "28"]
[EventDate "2022.06.18"]
[EventType "swiss"]
[EventCountry "CZE"]
[SourceTitle "playchess.com"]
[Source "ChessBase"]
[SourceQuality "1"]
[TimeControl "40/5400+30:1800+30"]

{[%evp 27,28,0,25]} 1. e4 {[%emt 0:00:06]} e5 {[%emt 0:00:10]} 2. Nf3 {[%emt 0:00:09]} Nc6 {[%emt 0:00:12]} 3. Bb5 {[%emt 0:00:21]} a6 {[%emt 0:00:39]} 4. Ba4 {[%emt 0:00:08]} Nf6 {[%emt 0:00:24]} 5. O-O {[%emt 0:00:09]} Be7 {[%emt 0:00:44]} 6. Re1 {[%emt 0:00:07]} b5 {[%emt 0:00:28]} 7. Bb3 {[%emt 0:00:03]} d6 {[%emt 0:00:19]} 8. c3 {[%emt 0:00:20]} O-O {[%emt 0:00:21]} 9. h3 {[%emt 0:00:02]} Bb7 {[%emt 0:04:03]} 10. d4 {[%emt 0:00:48]} Re8 {[%emt 0:00:27] [#]} 11. Ng5 $146 {[%emt 0:03:15]} ({Predecessor:} 11. Nbd2 Bf8 12. a4 h6 13. Bc2 Nb8 14. Bd3 Nbd7 15. axb5 exd4 16. cxd4 axb5 17. Rxa8 Qxa8 18. Bxb5 Bxe4 19. Nxe4 Rxe4 20. Be3 Nb6 21. Qc2 Re7 22. Bc6 {½-½ (50) So,W (2778)-Predke,A (2682) Berlin 2022}) 11... Rf8 {[%emt 0:00:39]} 12. Nf3 {[%emt 0:00:05]} Re8 {[%emt 0:03:39]} 13. Ng5 {[%emt 0:01:33] 13.Bc2 is setting a new trend.} Rf8 {[%emt 0:00:10]} 14. Nf3 {[%emt 0:00:03]} Re8 {[%emt 0:03:29]} 1/2-1/2

[Event "Teplice Open 2022"]
[Site "Teplice"]
[Date "2022.06.23"]
[Round "6.9"]
[White "Romanov, Evgeny"]
[Black "Holm, Kristian Stuvik"]
[Result "1/2-1/2"]
[ECO "A06"]
[WhiteElo "2573"]
[BlackElo "2458"]
[Annotator "TA"]
[PlyCount "42"]
[EventDate "2022.06.18"]
[EventType "swiss"]
[EventCountry "CZE"]
[SourceTitle "playchess.com"]
[Source "ChessBase"]
[SourceQuality "1"]
[TimeControl "40/5400+30:1800+30"]

{[%evp 9,42,-18,-8,-41,-13,-16,-10,-34,-41,-28,-24,-55,-1,-14,-5,-32,-38,-52,0,0,0,0,0,0,0,0,0,0,0,0,0,0,0,0,0]} 1. Nf3 {[%emt 0:08:24]} d5 {[%emt 0:00:12]} 2. d3 {[%emt 0:00:13]} Nc6 {[%emt 0:04:44]} 3. a3 {[%emt 0:04:24]} g6 {[%emt 0:04:39]} 4. g3 {[%emt 0:01:22]} Bg7 {[%emt 0:01:01]} 5. Bg2 {[%emt 0:00:07]} e5 {[%emt 0:00:56] [#]} 6. Nbd2 $146 {[%emt 0:02:32] A06: Réti Opening: 1 Nf3 d5.} ({Predecessor:} 6. O-O Nf6 7. Nc3 O-O 8. Bg5 Be6 9. e4 d4 10. Ne2 Qd6 11. Ne1 a5 12. h3 {1-0 (48) Raijmaekers,C (2047)-Balutescu,M ICCF email 2008}) 6... Nf6 {[%emt 0:03:08]} 7. O-O {[%emt 0:00:55]} O-O {[%emt 0:00:34]} 8. c4 {[%emt 0:07:51]} e4 {[%emt 0:10:00]} 9. Ne1 {[%emt 0:01:00]} dxc4 {[%emt 0:04:00]} 10. dxe4 {[%emt 0:06:40]} Rb8 {[%emt 0:05:12]} ({Black should play} 10... Be6 $15) 11. Nc2 $11 {[%emt 0:00:48]} b5 {[%emt 0:03:35]} 12. f4 {[%emt 0:01:21]} Nd4 {[%emt 0:02:50]} 13. e5 {[%emt 0:05:54]} Nxc2 {[%emt 0:01:09]} (13... Bf5 $1 $15 14. e4 (14. exf6 $2 Bxc2 15. Qe1 Bxf6 $19) 14... Bg4) 14. Qxc2 {[%emt 0:05:23] The position is equal.} Qd4+ {[%emt 0:06:51]} 15. Kh1 {[%emt 0:09:44]} Ng4 {[%emt 0:01:19] [#] And now ...Nf2+ would win.} 16. Nf3 $36 {[%emt 0:01:50][%mdl 2048] Black is under pressure.} Nf2+ {[%emt 0:04:20]} 17. Kg1 {[%emt 0:00:52]} Nh3+ $1 {[%emt 0:00:05]} 18. Kh1 {[%emt 0:00:04]} Nf2+ {[%emt 0:00:04]} 19. Kg1 {[%emt 0:01:26]} Nh3+ $1 {[%emt 0:00:05]} 20. Kh1 {[%emt 0:00:05]} Nf2+ {[%emt 0:00:13]} 21. Kg1 {[%emt 0:00:05]} Nh3+ $1 {[%emt 0:00:06] Weighted Error Value: White=0.11 (very precise) /Black=0.13 (very precise)} 1/2-1/2

[Event "Teplice Open 2022"]
[Site "Teplice"]
[Date "2022.06.23"]
[Round "6.10"]
[White "Kraus, Tomas"]
[Black "Sanal, Vahap"]
[Result "1/2-1/2"]
[ECO "C47"]
[WhiteElo "2472"]
[BlackElo "2575"]
[Annotator "TA"]
[PlyCount "91"]
[EventDate "2022.06.18"]
[EventType "swiss"]
[EventCountry "CZE"]
[SourceTitle "playchess.com"]
[Source "ChessBase"]
[SourceQuality "1"]
[TimeControl "40/5400+30:1800+30"]

{[%evp 16,91,6,7,3,0,0,0,4,0,12,0,0,0,7,7,5,0,22,22,29,23,36,31,25,33,79,75,122,123,181,181,168,81,83,91,204,96,96,96,96,96,96,96,96,96,96,96,96,95,95,35,51,53,60,29,29,3,29,29,29,29,33,36,36,0,0,0,0,0,0,0,0,0,1,0,0,0]} 1. e4 {[%emt 0:00:04]} e5 {[%emt 0:02:45]} 2. Nf3 {[%emt 0:00:37]} Nc6 {[%emt 0:00:07]} 3. Nc3 {[%emt 0:01:45]} Nf6 {[%emt 0:01:00]} 4. d4 {[%emt 0:00:42]} exd4 {[%emt 0:00:09]} 5. Nxd4 {[%emt 0:00:05]} Bb4 {[%emt 0:00:12]} 6. Nxc6 {[%emt 0:00:17]} bxc6 {[%emt 0:00:14]} 7. Bd3 {[%emt 0:00:17]} d5 {[%emt 0:00:05]} 8. Bd2 {[%emt 0:00:54]} O-O {[%emt 0:00:17]} 9. O-O {[%emt 0:00:08]} Rb8 {[%emt 0:00:41] C47: Scotch Four Knights and Four Knights with 4 g3.} 10. Re1 {[%emt 0:01:59]} Ng4 {[%emt 0:01:48] 10...Bg4 is a critical line.} 11. h3 {[%emt 0:01:36]} Ne5 {[%emt 0:00:47]} 12. Bf4 {[%emt 0:00:12]} Bd6 {[%emt 0:08:49]} 13. Bxe5 {[%emt 0:01:25]} Bxe5 {[%emt 0:00:09]} 14. exd5 {[%emt 0:00:07]} Bxc3 {[%emt 0:02:13]} 15. bxc3 {[%emt 0:00:05]} cxd5 {[%emt 0:00:29] [#]} 16. Qe2 $146 {[%emt 0:00:25]} ({Predecessor:} 16. Qf3 Qg5 17. Re2 Rb6 18. Rae1 Rf6 19. Qe3 Qxe3 20. Rxe3 Rc6 21. Re5 Rxc3 22. Rxd5 {½-½ (32) Sebag,M (2476)-Khotenashvili,B (2491) Saint Louis 2019}) 16... Rb6 {[%emt 0:03:02]} 17. Qe3 {[%emt 0:02:59]} Qd6 {[%emt 0:02:49]} 18. a4 $40 {[%emt 0:03:46][%mdl 128] Black needs to defend precisely.} a5 {[%emt 0:02:01]} 19. c4 {[%emt 0:03:09]} dxc4 {[%emt 0:04:19]} 20. Bxc4 {[%emt 0:03:37]} Bb7 {[%emt 0:01:48]} (20... Qb4 $14 21. Qb3 g6) 21. Bb3 $16 {[%emt 0:11:35]} c5 {[%emt 0:14:36]} (21... Qg6 $142 22. f3 Rd6) 22. Rad1 $1 {[%emt 0:07:47]} Qg6 {[%emt 0:01:31]} (22... Qb8 $16 {might work better.}) 23. f3 $18 {[%emt 0:02:02][%cal Od1d8] aiming for Rd8!} Rd6 {[%emt 0:07:06] [#] Against Rd8} 24. Kh1 {[%emt 0:16:26]} (24. Kh2 $1 $18 {and White stays clearly on top.}) 24... Rxd1 $16 {[%emt 0:01:37]} 25. Rxd1 {[%emt 0:00:23][%cal Be1d1,Bd1d7,Bd7b7,Bb7a7][%mdl 32] Threatens to win with Qe7.} c4 {[%emt 0:11:45] [#]} (25... Qf5 $16 {was called for.}) 26. Bxc4 {[%emt 0:00:16]} (26. Qe7 $1 $18 {White wants to mate with Rd8.} Qe6 27. Qxe6 (27. Qxb7 cxb3 28. cxb3 g6 $16) 27... fxe6 28. Bxc4) 26... Qxc2 {[%emt 0:00:05] [#]} 27. Bxf7+ $1 {[%emt 0:01:58]} Kxf7 {[%emt 0:00:08]} (27... Rxf7 $2 {leads to mate.} 28. Rd8+ Rf8 29. Qe6+ Kh8 30. Rxf8#) 28. Rd7+ {[%emt 0:02:04]} Kg8 {[%emt 0:00:17] ...Bc6 is the strong threat.} 29. Rxb7 {[%emt 0:16:34][%mdl 4096] Endgame KQR-KQR} Qd1+ {[%emt 0:04:47]} 30. Kh2 {[%emt 0:00:04] Qe5 would kill now.} Qxa4 {[%emt 0:00:14]} 31. Qe6+ {[%emt 0:00:27]} Kh8 {[%emt 0:00:02]} 32. Qe5 {[%emt 0:00:33][%csl Gb7][%cal Re5g7]} Rg8 {[%emt 0:00:05]} 33. f4 {[%emt 0:01:26]} ({Better is} 33. Rb5 $16) 33... Qc6 {[%emt 0:01:06]} 34. Ra7 {[%emt 0:01:51]} h6 {[%emt 0:01:27]} ({Not} 34... a4 35. Qa1 $16) 35. f5 {[%emt 0:02:27][%cal Bf4f5,Bf5f6,Bf6g7][%mdl 32]} a4 {[%emt 0:01:48]} 36. Qd4 {[%emt 0:08:30]} (36. Re7 $5 {[%cal Re7e6]} Qc2 37. Re6 $16) 36... Qb5 {[%emt 0:02:14]} 37. f6 {[%emt 0:01:55][%cal Rf6g7]} Qb8+ {[%emt 0:00:02]} 38. g3 {[%emt 0:01:33][%cal Rf6g7]} Qb1 {[%emt 0:00:05]} 39. fxg7+ {[%emt 0:02:27]} Kh7 {[%emt 0:00:06]} 40. h4 {[%emt 0:01:39] Active counter play!} Qc2+ {[%emt 0:02:09] The position is equal.} 41. Kh3 {[%emt 0:31:24]} Qf5+ {[%emt 0:30:07]} 42. Kg2 {[%emt 0:02:08]} Qc2+ {[%emt 0:00:12]} 43. Qf2 {[%emt 0:00:00][%cal Rf2c2]} Qe4+ {[%emt 0:00:00]} 44. Qf3 {[%emt 0:00:00][%cal Rf3e4]} Qc2+ {[%emt 0:00:00]} 45. Qf2 {[%emt 0:00:00][%cal Rf2c2]} Qe4+ {[%emt 0:00:00]} 46. Qf3 {[%emt 0:00:50] White really could win this.  Weighted Error Value: White=0.10 (very precise) /Black=0.12 (very precise)} 1/2-1/2

[Event "Teplice Open 2022"]
[Site "Teplice"]
[Date "2022.06.23"]
[Round "6.11"]
[White "Moksh Amit Doshi"]
[Black "Laurusas, Tomas"]
[Result "0-1"]
[ECO "D13"]
[WhiteElo "2398"]
[BlackElo "2567"]
[Annotator "TA"]
[PlyCount "76"]
[EventDate "2022.06.18"]
[EventType "swiss"]
[EventCountry "CZE"]
[SourceTitle "playchess.com"]
[Source "ChessBase"]
[SourceQuality "1"]
[TimeControl "40/5400+30:1800+30"]

{[%evp 12,76,32,-10,-17,-13,-14,-16,0,-9,-7,-11,0,0,-9,-17,-13,-44,-31,-33,-24,-39,-37,-36,-30,-56,-34,-48,-48,-50,-45,-38,0,-50,-50,-55,-55,-55,-55,-55,-60,-61,-64,-77,-40,-43,0,-104,-16,-13,0,-13,-16,-93,-93,-104,-110,-197,-204,-466,-481,-473,-433,-470,-439,-666,-660]} 1. d4 {[%emt 0:00:46]} d5 {[%emt 0:00:09]} 2. c4 {[%emt 0:00:08]} c6 {[%emt 0:00:05]} 3. Nf3 {[%emt 0:00:23]} Nf6 {[%emt 0:00:07]} 4. cxd5 {[%emt 0:00:04]} cxd5 {[%emt 0:01:06]} 5. Nc3 {[%emt 0:00:08]} Nc6 {[%emt 0:02:18]} 6. Bf4 {[%emt 0:00:07]} Qb6 {[%emt 0:06:07]} 7. Qb3 {[%emt 0:08:28]} Qxb3 {[%emt 0:11:37] D13: Slav Defence: Exchange variation without ...Bf5.} 8. axb3 {[%emt 0:00:07]} e6 {[%emt 0:00:08]} 9. e3 {[%emt 0:05:14] [#]} Nh5 $146 {[%emt 0:03:13] The position is equal.} ({Predecessor:} 9... Bd7 10. Bd3 Bb4 11. Ke2 O-O 12. Rhc1 Rfc8 13. Nb5 Ne8 14. Ne5 Nxe5 15. Bxe5 a6 {1-0 (74) Le,T (2514)-Dubov,D (2710) Chess.com INT 2021}) 10. Bc7 {[%emt 0:02:50]} Bd7 {[%emt 0:12:18]} 11. h3 {[%emt 0:04:12]} Rc8 {[%emt 0:01:04]} 12. Bh2 {[%emt 0:00:18]} Nf6 {[%emt 0:01:22]} 13. Bb5 {[%emt 0:25:28]} a6 {[%emt 0:01:46]} 14. Bxc6 {[%emt 0:00:09]} Bxc6 {[%emt 0:00:08]} 15. Ne5 {[%emt 0:00:06]} Bb4 {[%emt 0:21:24]} 16. f3 {[%emt 0:01:48]} Nd7 {[%emt 0:09:05]} 17. Nd3 {[%emt 0:04:26]} Be7 {[%emt 0:00:04]} 18. Kd2 {[%emt 0:03:42]} f6 {[%emt 0:00:36]} 19. Na4 {[%emt 0:09:58]} Kf7 {[%emt 0:06:30]} 20. Rac1 {[%emt 0:00:54]} Bb5 {[%emt 0:02:16]} 21. Nc3 {[%emt 0:00:20]} Bc6 {[%emt 0:00:19]} (21... Bxd3 $5 22. Kxd3 h5 $11) 22. Na4 {[%emt 0:00:06]} Rhe8 {[%emt 0:02:34]} 23. Rc2 {[%emt 0:00:35]} Bf8 {[%emt 0:03:00]} 24. Ndc5 {[%emt 0:01:22]} Nxc5 {[%emt 0:08:20]} 25. Nxc5 {[%emt 0:00:28]} e5 {[%emt 0:00:01]} 26. Rhc1 {[%emt 0:00:54][%cal Oc5a6]} exd4 {[%emt 0:03:10]} 27. exd4 {[%emt 0:00:08][%cal Oc5a6]} a5 {[%emt 0:04:03]} (27... g6 $5 {[%cal Rf8h6]} 28. Nd3 Be7 $17) 28. Ra1 {[%emt 0:01:40]} Ra8 {[%emt 0:00:58]} 29. b4 {[%emt 0:03:05] [#]} (29. Bc7 $11 {keeps the balance.}) 29... b6 {[%emt 0:00:30]} ({Reject} 29... axb4 $6 30. Rxa8 Rxa8 31. Nxb7 $11) (29... a4 $1 $17 30. Nd3 Kg8) 30. Nd3 $11 {[%emt 0:00:14]} Bb5 {[%emt 0:00:22]} 31. bxa5 {[%emt 0:00:09]} bxa5 {[%emt 0:00:13]} 32. Bc7 {[%emt 0:00:17]} (32. b3 $11) 32... a4 $17 {[%emt 0:00:49]} 33. Bb6 {[%emt 0:00:04]} g6 {[%emt 0:00:20] White must now prevent ...Re6.} 34. f4 {[%emt 0:06:20]} (34. Rc7+ $17 {is a better defense.} Kg8 35. Bc5) 34... Re4 $19 {[%emt 0:00:53] And now ...Rae8 would win.} 35. Rf1 $2 {[%emt 0:09:19]} (35. Rc7+ Kg8 36. Bc5) 35... Bb4+ {[%emt 0:00:26] Black is clearly winning.} 36. Nxb4 {[%emt 0:00:25] Threatens to win with Rc7+.} Re2+ {[%emt 0:00:01]} (36... Bxf1 $2 {too greedy.} 37. Rc7+ Re7 38. Rxe7+ Kxe7 39. Nxd5+ Kf7 40. Bc5 $19) 37. Kd1 {[%emt 0:01:02]} Rxc2 {[%emt 0:00:02][%mdl 64] [#] Discovered Attack} 38. Re1 {[%emt 0:00:04]} (38. Nxc2 $142 Bxf1 39. Ne3) 38... Rxb2 {[%emt 0:00:18] Weighted Error Value: White=0.36/Black=0.09 (flawless)} 0-1